lending/lending_fUSD_20260411
["ID","MTS","AMOUNT","RATE_DAILY","PERIOD"]
[420285452,1775910860496,-1000.0,0.00034443,60]
[420285453,1775910860528,-600.0,0.00034443,60]
[420285454,1775910860559,-1000.0,0.00034443,60]
[420285455,1775910860594,-500.0,0.00034443,60]
[420285456,1775910860629,-901.0354552,0.00034443,60]
[420285457,1775910860662,-1000.0,0.00034443,60]
[420285458,1775910860695,-800.0,0.00034443,60]
[420285459,1775910860723,-600.0,0.00034443,60]
[420285460,1775910860768,-500.0,0.00034443,60]
[420285461,1775910860811,-1874.2926231,0.00034443,60]
[420285462,1775910860855,-1000.0,0.00034443,60]
[420285463,1775910860905,-612.5632004,0.00034443,60]
[420285464,1775910860986,-800.0,0.00034443,60]
[420285465,1775910861053,-500.0,0.00034443,60]
[420285466,1775910861099,-1000.0,0.00034443,60]
[420285467,1775910861133,-800.0,0.00034443,60]
[420285468,1775910861434,-689.8367069,0.00034443,60]
[420285469,1775910861468,-1000.0,0.00034443,60]
[420285470,1775910861512,-800.0,0.00034443,60]
[420285471,1775910861549,-1000.0,0.00034443,60]
[420285472,1775910861597,-800.0,0.00034443,60]
[420285473,1775910861627,-1000.0,0.00034443,60]
[420285474,1775910861665,-800.0,0.00034443,60]
[420285475,1775910861702,-1000.0,0.00034443,60]
[420285476,1775910861734,-800.0,0.00034443,60]
[420285477,1775910861762,-1000.0,0.00034443,60]
[420285478,1775910861793,-800.0,0.00034443,60]
[420285479,1775910861826,-1000.0,0.00034443,60]
[420285480,1775910861854,-800.0,0.00034443,60]
[420285481,1775910861887,-1000.0,0.00034443,60]
[420285482,1775910861939,-800.0,0.00034443,60]
[420285483,1775910862000,-1000.0,0.00034443,60]
[420285484,1775910862051,-800.0,0.00034443,60]
[420285485,1775910862108,-1000.0,0.00034443,60]
[420285486,1775910862185,-800.0,0.00034443,60]
[420285487,1775910862227,-1000.0,0.00034443,60]
[420285488,1775910862269,-800.0,0.00034443,60]
[420285489,1775910862304,-800.0,0.00034443,60]
[420285490,1775910862359,-1000.0,0.00034443,60]
[420285491,1775910862403,-800.0,0.00034443,60]
[420285492,1775910862432,-1036.1794786,0.00034443,60]
[420285493,1775910862474,-800.0,0.00034443,60]
[420285494,1775910862545,-800.0,0.00034443,60]
[420285495,1775910862624,-800.0,0.00034443,60]
[420285496,1775910862666,-800.0,0.00034443,60]
[420285497,1775910862698,-800.0,0.00034443,60]
[420285498,1775910862749,-1189.3828493,0.00034443,60]
[420285499,1775910862787,-363.90930972,0.00034444,30]
[420285500,1775910862826,-363.90930972,0.00034444,30]
[420285501,1775910862869,-215.0,0.000345,120]
[420285502,1775910862933,-193.0,0.00034521,120]
[420285503,1775910862980,-1517.86,0.00034592,120]
[420285504,1775910863039,-2799.48,0.0003466,30]
[420285505,1775910863094,-216.55,0.00034712,30]
[420285506,1775910863179,-2097.38,0.00034712,30]
[420285507,1775910863268,-2472.78,0.00034712,30]
[420285508,1775910863384,-338.92,0.00034712,30]
[420285509,1775910863449,-181.83,0.0003474,60]
[420285510,1775910863494,-178.53,0.0003474,60]
[420285511,1775910863589,-178.52,0.0003474,60]
[420285512,1775910863736,-1517.86,0.00034745,120]
[420285513,1775910863859,-879.82,0.00034751,30]
[420285514,1775910863925,-500.0,0.00034795,120]
[420285515,1775910863973,-1500.0,0.000348,120]
[420285516,1775910864022,-240.0,0.00034859,37]
[420285517,1775910864107,-573.8,0.00034877,120]
[420285518,1775910864234,-4799.54008621,0.0003488,120]
[420285519,1775910864307,-201.0,0.0003488,30]
[420285520,1775910864362,-1517.86,0.00034898,120]
[420285521,1775910864415,-715.1176457,0.000349,120]
[420285522,1775910864456,-755.0,0.00034945,30]
[420285523,1775910864508,-159.0,0.00034945,30]
[420285524,1775910864546,-963.0,0.00034945,30]
[420285525,1775910864578,-4570.0,0.00034945,30]
[420285526,1775910864619,-6146.0,0.00034945,30]
[420285527,1775910864652,-510.0,0.00034945,30]
[420285528,1775910864683,-814.0,0.00034948,30]
[420285529,1775910864716,-2830.0,0.00034948,30]
[420285530,1775910864746,-1156.0,0.00034953,30]
[420285531,1775910864776,-1063.0,0.00034953,30]
[420285532,1775910864824,-2356.68,0.00034959,30]
[420285533,1775910864858,-3000.0,0.00035,120]
[420285534,1775910864895,-150.0,0.00035,60]
[420285535,1775910864930,-1000.0,0.00035,30]
[420285536,1775910864989,-383.0,0.00035,120]
[420285537,1775910865066,-1033.9,0.00035,120]
[420285538,1775910865133,-600.0,0.00035,30]
[420285539,1775910865166,-300.0,0.00035,30]
[420285540,1775910865204,-3302.0,0.00035,120]
[420285541,1775910865242,-9268.68454589,0.00035,120]
[420285542,1775910865280,-400.44503806,0.00035,120]
[420285543,1775910865318,-150.0,0.00035,120]
[420285544,1775910865357,-3500.0,0.00035,120]
[420285545,1775910865387,-5000.0,0.00035,120]
[420285546,1775910865422,-2297.32214805,0.00035,30]
[420285547,1775910865456,-99960.18215546,0.00035,120]
[420285548,1775910865489,-200.0,0.00035,120]
[420285549,1775910865518,-5000.0,0.00035,30]
[420285550,1775910865553,-5000.0,0.00035,60]
[420285551,1775910865591,-500.0,0.00035,30]
[420285552,1775910865633,-500.0,0.00035,30]
[420285553,1775910865668,-500.0,0.00035,30]
[420285554,1775910865707,-791.0,0.00035,90]
[420285555,1775910865743,-5000.0,0.00035,120]
[420285556,1775910865773,-5000.0,0.00035,120]
[420285557,1775910865834,-21798.18074042,0.00035,30]
[420285558,1775910865871,-10043.21639606,0.00035,30]
[420285559,1775910865899,-33004.48155054,0.00035,60]
[420285560,1775910865957,-400.0,0.00035,30]
[420285561,1775910865986,-299.91579907,0.00035,120]
[420285562,1775910866338,-500.0,0.00035,60]
[420285563,1775910866394,-619.82505958,0.00035014,90]
[420285564,1775910866452,-448.4069983,0.00035017,30]
[420285565,1775910866493,-1517.86,0.00035051,120]
[420285566,1775910866547,-673.6779,0.000352,120]
[420285567,1775910866593,-1517.86,0.00035204,120]
[420285568,1775910866631,-176.588056,0.00035265,120]
[420285569,1775910866662,-1517.86,0.00035357,120]
[420285570,1775910866708,-153.0,0.0003538,120]
[420285571,1775910866748,-2000.0,0.000354,120]
[420285572,1775910866780,-300.0,0.000354,30]
[420285573,1775910866836,-400.0,0.000354,120]
[420285574,1775910866878,-161.65570134,0.000354,30]
[420285575,1775910866923,-193.29806552,0.000354,30]
[420285576,1775910866960,-187.36650103,0.000354,60]
[420285577,1775910867007,-1517.86,0.0003551,120]
[420285578,1775910867049,-150.0,0.00035551,120]
[420285579,1775910867081,-826.94,0.000356,120]
[420285580,1775910867123,-251.8,0.000356,90]
[420285581,1775910867162,-1411.57,0.000356,90]
[420285582,1775910867213,-1132.23,0.000356,90]
[420285583,1775910867253,-1729.72,0.000356,90]
[420285584,1775910867299,-937.66,0.000356,90]
[420285585,1775910867331,-1577.85,0.000356,90]
[420285586,1775910867371,-1839.1,0.000356,90]
[420285587,1775910867409,-1379.62,0.000356,90]
[420285588,1775910867453,-677.66,0.000356,90]
[420285589,1775910867491,-1881.89,0.000356,90]
[420285590,1775910867533,-500.0,0.00035616,120]
[420285591,1775910867574,-1000.0,0.00035616,120]
[420285592,1775910867616,-550.0,0.00035616,120]
[420285593,1775910867670,-550.0,0.00035616,60]
[420285594,1775910867721,-550.0,0.00035616,120]
[420285595,1775910867763,-168.0,0.00035616,120]
[420285596,1775910867826,-500.0,0.00035616,120]
[420285597,1775910867897,-1517.86,0.00035663,120]
[420285598,1775910867941,-2374.669,0.00035745,43]
[420285599,1775910867995,-2096.41,0.00035774,30]
[420285600,1775910868041,-6265.76371906,0.000358,30]
[420285601,1775910868100,-1517.86,0.00035816,120]
[420285602,1775910868164,-2000.0,0.0003589,120]
[420285603,1775910868236,-573.8,0.00035945,120]
[420285604,1775910868297,-755.0,0.00035945,30]
[420285605,1775910868345,-159.0,0.00035945,30]
[420285606,1775910868410,-963.0,0.00035945,30]
[420285607,1775910868507,-4570.0,0.00035945,30]
[420285608,1775910868564,-6146.0,0.00035945,30]
[420285609,1775910868604,-510.0,0.00035945,30]
[420285610,1775910868645,-814.0,0.00035948,30]
[420285611,1775910868688,-2830.0,0.00035948,30]
[420285612,1775910868736,-1156.0,0.00035953,30]
[420285613,1775910868796,-1063.0,0.00035953,30]
[420285614,1775910868832,-1517.86,0.00035969,120]
[420285615,1775910868873,-1000.0,0.00036,120]
[420285616,1775910868926,-443.2402525,0.00036,120]
[420285617,1775910868967,-200.0,0.00036,120]
[420285618,1775910869005,-10000.0,0.00036,120]
[420285619,1775910869065,-320.76,0.00036,120]
[420285620,1775910869179,-150.86214717,0.00036,120]
[420285621,1775910869255,-1016.98,0.00036,90]
[420285622,1775910869315,-1517.86,0.00036122,120]
[420285623,1775910869352,-2000.0,0.00036164,120]
[420285624,1775910869395,-243.32808338,0.00036218,120]
[420285625,1775910869433,-243.32808337,0.00036228,120]
[420285626,1775910869487,-1517.86,0.00036276,120]
[420285627,1775910869526,-500.0,0.00036384,120]
[420285628,1775910869571,-190.49538026,0.00036385,120]
[420285629,1775910869611,-214.30730279,0.00036388,120]
[420285630,1775910869653,-1000.0,0.000364,120]
[420285631,1775910869694,-2197.19,0.000364,90]
[420285632,1775910869736,-639.41,0.000364,90]
[420285633,1775910869781,-1517.86,0.00036429,120]
[420285634,1775910869829,-2000.0,0.00036438,120]
[420285635,1775910869862,-190.49538026,0.0003645,120]
[420285636,1775910869904,-285.74307038,0.00036453,120]
[420285637,1775910869945,-384.29154256,0.00036493,120]
[420285638,1775910869983,-380.99076051,0.00036532,120]
[420285639,1775910870031,-2278.99,0.00036548,30]
[420285640,1775910870085,-1517.86,0.00036582,120]
[420285641,1775910870121,-363.77908023,0.00036667,30]
[420285642,1775910870156,-363.90930972,0.00036667,30]
[420285643,1775910870200,-2500.0,0.000367,38]
[420285644,1775910870242,-2000.0,0.00036712,120]
[420285645,1775910870279,-1517.86,0.00036735,120]
[420285646,1775910870327,-204.58405314,0.000368,60]
[420285647,1775910870365,-151.34413529,0.000368,30]
[420285648,1775910870406,-160.11945618,0.000368,120]
[420285649,1775910870454,-340.0332,0.000368,120]
[420285650,1775910870490,-346.6334,0.000368,30]
[420285651,1775910870543,-1517.86,0.00036888,120]
[420285652,1775910870600,-201.0,0.0003689,30]
[420285653,1775910870655,-1813.99475189,0.000369,120]
[420285654,1775910870711,-879.82,0.00036914,30]
[420285655,1775910870754,-755.0,0.00036945,30]
[420285656,1775910871169,-162.0,0.00036945,30]
[420285657,1775910871210,-963.0,0.00036945,30]
[420285658,1775910871267,-4570.0,0.00036945,30]
[420285659,1775910871311,-6146.0,0.00036945,30]
[420285660,1775910871360,-510.0,0.00036945,30]
[420285661,1775910871394,-814.0,0.00036948,30]
[420285662,1775910871455,-2830.0,0.00036948,30]
[420285663,1775910871491,-1156.0,0.00036953,30]
[420285664,1775910871534,-1063.0,0.00036953,30]
[420285665,1775910871571,-2000.0,0.00036986,120]
[420285666,1775910871610,-550.0,0.00036986,120]
[420285667,1775910871673,-550.0,0.00036986,60]
[420285668,1775910871718,-550.0,0.00036986,120]
[420285669,1775910871814,-1000.0,0.00037,120]
[420285670,1775910871882,-1000.0,0.00037,30]
[420285671,1775910871922,-150.0,0.00037,120]
[420285672,1775910872007,-5000.0,0.00037,120]
[420285673,1775910872080,-10994.4668161,0.00037,30]
[420285674,1775910872137,-150.0,0.00037,120]
[420285675,1775910872197,-2000.0,0.00037,120]
[420285676,1775910872266,-573.8,0.00037014,120]
[420285677,1775910872325,-1517.86,0.00037041,120]
[420285678,1775910872390,-1517.86,0.00037194,120]
[420285679,1775910872443,-1351.58408335,0.000372,120]
[420285680,1775910872498,-1351.58408333,0.000372,120]
[420285681,1775910872540,-1351.58408333,0.000372,120]
[420285682,1775910872578,-1351.58408333,0.000372,120]
[420285683,1775910872614,-1351.58408333,0.000372,120]
[420285684,1775910872653,-253.11077107,0.00037212,120]
[420285685,1775910872697,-2000.0,0.0003726,120]
[420285686,1775910872771,-1000.0,0.000373,120]
[420285687,1775910872865,-1000.0,0.000373,120]
[420285688,1775910872980,-3143.32,0.0003732,30]
[420285689,1775910873091,-1517.86,0.00037347,120]
[420285690,1775910873138,-500.0,0.0003737,120]
[420285691,1775910873179,-3179.74110917,0.000375,30]
[420285692,1775910873217,-2000.0,0.00037534,120]
[420285693,1775910873249,-2000.0,0.00037808,120]
[420285694,1775910873309,-1325.96689595,0.0003781,30]
[420285695,1775910873359,-1325.96689595,0.0003781,30]
[420285696,1775910873456,-1325.96689595,0.0003781,30]
[420285697,1775910873535,-1325.96689595,0.0003781,30]
[420285698,1775910873590,-1325.96689595,0.0003781,30]
[420285699,1775910873626,-1325.96689595,0.0003781,30]
[420285700,1775910873688,-1325.96689595,0.0003781,30]
[420285701,1775910873743,-1325.96689595,0.0003781,30]
[420285702,1775910873890,-1325.96689595,0.0003781,30]
[420285703,1775910873972,-1325.96689595,0.0003781,30]
[420285704,1775910874039,-1325.96689595,0.0003781,30]
[420285705,1775910874093,-1325.96689595,0.0003781,30]
[420285706,1775910874255,-1325.96689595,0.0003781,30]
[420285707,1775910874390,-1325.96689595,0.0003781,30]
[420285708,1775910874768,-1325.96689595,0.0003781,30]
[420285709,1775910874828,-1325.96689595,0.0003781,30]
[420285710,1775910874879,-1325.96689595,0.0003781,30]
[420285711,1775910874914,-1325.96689595,0.0003781,30]
[420285712,1775910874945,-1325.96689595,0.0003781,30]
[420285713,1775910874991,-1325.96,0.0003781,30]
[420285714,1775910875048,-3093.92275722,0.0003781,30]
[420285715,1775910875133,-3093.92275722,0.0003781,30]
[420285716,1775910875187,-3093.92275722,0.0003781,30]
[420285717,1775910875274,-3093.92275722,0.0003781,30]
[420285718,1775910875339,-3093.92275722,0.0003781,30]
[420285719,1775910875416,-3093.92275722,0.0003781,30]
[420285720,1775910875595,-3093.92275722,0.0003781,30]
[420285721,1775910875668,-3093.92275722,0.0003781,30]
[420285722,1775910875727,-3093.92275722,0.0003781,30]
[420285723,1775910875771,-3093.92275722,0.0003781,30]
[420285724,1775910875814,-3093.92275722,0.0003781,30]
[420285725,1775910875868,-3093.92275722,0.0003781,30]
[420285726,1775910875915,-3093.92275722,0.0003781,30]
[420285727,1775910875959,-3093.92275722,0.0003781,30]
[420285728,1775910876040,-3093.92275722,0.0003781,30]
[420285729,1775910876091,-3093.92275722,0.0003781,30]
[420285730,1775910876143,-3093.92275722,0.0003781,30]
[420285731,1775910876180,-3093.92275722,0.0003781,30]
[420285732,1775910876214,-3093.92275722,0.0003781,30]
[420285733,1775910876272,-3093.92,0.0003781,30]
[420285734,1775910876331,-2504.25003033,0.0003781,30]
[420285735,1775910876393,-2504.25003033,0.0003781,30]
[420285736,1775910876430,-2504.25003033,0.0003781,30]
[420285737,1775910876491,-2504.25003033,0.0003781,30]
[420285738,1775910876536,-2504.25003033,0.0003781,30]
[420285739,1775910876607,-2504.25003033,0.0003781,30]
[420285740,1775910876650,-2504.25003033,0.0003781,30]
[420285741,1775910876703,-2504.25003033,0.0003781,30]
[420285742,1775910876738,-2504.25003033,0.0003781,30]
[420285743,1775910876781,-2504.25003033,0.0003781,30]
[420285744,1775910876815,-2504.25003033,0.0003781,30]
[420285745,1775910876852,-2504.25003033,0.0003781,30]
[420285746,1775910876897,-2504.25003033,0.0003781,30]
[420285747,1775910876937,-2504.25003033,0.0003781,30]
[420285748,1775910877033,-2504.25003033,0.0003781,30]
[420285749,1775910877112,-2504.25003033,0.0003781,30]
[420285750,1775910877433,-2504.25003033,0.0003781,30]
[420285751,1775910877474,-2504.25003033,0.0003781,30]
[420285752,1775910877510,-2504.25003033,0.0003781,30]
[420285753,1775910877544,-2504.25,0.0003781,30]
[420285754,1775910877578,-5843.25007076,0.0003781,30]
[420285755,1775910877614,-5843.25007076,0.0003781,30]
[420285756,1775910877655,-5843.25007076,0.0003781,30]
[420285757,1775910877691,-5843.25007076,0.0003781,30]
[420285758,1775910877729,-5843.25007076,0.0003781,30]
[420285759,1775910877765,-5843.25007076,0.0003781,30]
[420285760,1775910877798,-5843.25007076,0.0003781,30]
[420285761,1775910877839,-5843.25007076,0.0003781,30]
[420285762,1775910877875,-5843.25007076,0.0003781,30]
[420285763,1775910877918,-5843.25007076,0.0003781,30]
[420285764,1775910877960,-5843.25007076,0.0003781,30]
[420285765,1775910878003,-5843.25007076,0.0003781,30]
[420285766,1775910878099,-5843.25007076,0.0003781,30]
[420285767,1775910878169,-5843.25007076,0.0003781,30]
[420285768,1775910878252,-5843.25007076,0.0003781,30]
[420285769,1775910878296,-5843.25007076,0.0003781,30]
[420285770,1775910878339,-5843.25007076,0.0003781,30]
[420285771,1775910878377,-5843.25007076,0.0003781,30]
[420285772,1775910878415,-5843.25007076,0.0003781,30]
[420285773,1775910878449,-5843.25,0.0003781,30]
[420285774,1775910878483,-2329.35,0.00037838,30]
[420285775,1775910878523,-503.93981292,0.0003785,120]
[420285776,1775910878554,-227.08475312,0.000379,120]
[420285777,1775910878601,-1711.08306,0.000379,120]
[420285778,1775910878644,-1050.34554,0.000379,120]
[420285779,1775910878692,-755.0,0.00037945,30]
[420285780,1775910878741,-963.0,0.00037945,30]
[420285781,1775910878827,-4570.0,0.00037945,30]
[420285782,1775910878906,-6146.0,0.00037945,30]
[420285783,1775910878944,-510.0,0.00037945,30]
[420285784,1775910879014,-814.0,0.00037948,30]
[420285785,1775910879085,-2830.0,0.00037948,30]
[420285786,1775910879178,-1156.0,0.00037953,30]
[420285787,1775910879233,-1063.0,0.00037953,30]
[420285788,1775910879337,-1000.0,0.00038,120]
[420285789,1775910879446,-1000.0,0.00038,30]
[420285790,1775910879578,-903.0,0.00038,30]
[420285791,1775910879765,-2000.0,0.00038,39]
[420285792,1775910879883,-3643.0,0.00038,30]
[420285793,1775910879949,-150.0,0.00038,30]
[420285794,1775910880091,-500.0,0.00038,45]
[420285795,1775910880247,-500.0,0.00038,45]
[420285796,1775910880357,-500.0,0.00038,45]
[420285797,1775910880424,-200.0,0.00038,120]
[420285798,1775910880517,-455.0,0.00038,120]
[420285799,1775910880636,-10000.0,0.00038,30]
[420285800,1775910880835,-22000.0,0.00038,30]
[420285801,1775910880883,-500.0,0.00038,90]
[420285802,1775910880940,-676.51241,0.00038,60]
[420285803,1775910881001,-1151.0,0.00038,120]
[420285804,1775910881063,-600.0,0.00038014,120]
[420285805,1775910881117,-500.0,0.00038082,120]
[420285806,1775910881176,-573.8,0.00038082,120]
[420285807,1775910881261,-2000.0,0.00038082,120]
[420285808,1775910881323,-265.30884262,0.000381,33]
[420285809,1775910881436,-284.75901497,0.000381,33]
[420285810,1775910881479,-596.38902611,0.000381,33]
[420285811,1775910881541,-267.3517445,0.000381,33]
[420285812,1775910881598,-345.28930486,0.000381,33]
[420285813,1775910881663,-291.23976464,0.000381,33]
[420285814,1775910881709,-256.95966299,0.000381,33]
[420285815,1775910881749,-9891.12348327,0.000381,33]
[420285816,1775910881784,-292.2563157,0.000381,33]
[420285817,1775910881827,-270.55345216,0.000381,33]
[420285818,1775910881855,-325.206,0.000381,120]
[420285819,1775910881894,-248.97434719,0.000381,33]
[420285820,1775910881938,-1000.0,0.00038118,120]
[420285821,1775910881994,-552.81926203,0.000383,30]
[420285822,1775910882036,-308.0,0.000383,30]
[420285823,1775910882069,-1708.8,0.00038329,120]
[420285824,1775910882113,-1679.4,0.00038329,120]
[420285825,1775910882161,-1524.6,0.00038329,120]
[420285826,1775910882208,-1927.8,0.00038329,120]
[420285827,1775910882271,-1323.6,0.00038329,120]
[420285828,1775910882324,-1830.0,0.00038329,120]
[420285829,1775910882363,-1478.7,0.00038329,120]
[420285830,1775910882415,-1478.7,0.00038329,120]
[420285831,1775910882453,-2140.8,0.00038329,120]
[420285832,1775910882511,-2163.0,0.00038329,120]
[420285833,1775910882549,-249.908977,0.00038342,120]
[420285834,1775910882592,-151.0,0.00038342,120]
[420285835,1775910882638,-249.908977,0.00038342,120]
[420285836,1775910882701,-151.0,0.00038342,120]
[420285837,1775910882746,-175.910152,0.00038342,120]
[420285838,1775910882796,-151.0,0.00038342,120]
[420285839,1775910882838,-249.908977,0.00038342,120]
[420285840,1775910882870,-151.0,0.00038342,120]
[420285841,1775910882926,-151.0,0.00038342,120]
[420285842,1775910882971,-499.9205,0.00038342,120]
[420285843,1775910883021,-249.908977,0.00038342,120]
[420285844,1775910883330,-611.768856,0.00038342,120]
[420285845,1775910883374,-151.0,0.00038342,120]
[420285846,1775910883455,-499.9205,0.00038342,120]
[420285847,1775910883492,-611.768856,0.00038342,120]
[420285848,1775910883545,-151.0,0.00038342,120]
[420285849,1775910883586,-151.0,0.00038342,120]
[420285850,1775910883631,-287.930184,0.00038342,120]
[420285851,1775910883668,-499.9205,0.00038342,120]
[420285852,1775910883715,-611.768856,0.00038342,120]
[420285853,1775910883757,-151.0,0.00038342,120]
[420285854,1775910883802,-499.9205,0.00038342,120]
[420285855,1775910883857,-187.06189,0.00038342,120]
[420285856,1775910883914,-611.768856,0.00038342,120]
[420285857,1775910883963,-692.489551,0.00038342,120]
[420285858,1775910884016,-151.0,0.00038342,120]
[420285859,1775910884054,-187.06189,0.00038342,120]
[420285860,1775910884097,-228.729192,0.00038342,120]
[420285861,1775910884139,-692.489551,0.00038342,120]
[420285862,1775910884177,-187.06189,0.00038342,120]
[420285863,1775910884206,-228.729192,0.00038342,120]
[420285864,1775910884242,-692.489551,0.00038342,120]
[420285865,1775910884278,-187.06189,0.00038342,120]
[420285866,1775910884321,-228.729192,0.00038342,120]
[420285867,1775910884378,-692.489551,0.00038342,120]
[420285868,1775910884427,-151.0,0.00038342,120]
[420285869,1775910884467,-228.729192,0.00038342,120]
[420285870,1775910884518,-151.0,0.00038342,120]
[420285871,1775910884566,-151.0,0.00038342,120]
[420285872,1775910884605,-399.820276,0.00038342,120]
[420285873,1775910884648,-399.820276,0.00038342,120]
[420285874,1775910884687,-399.820276,0.00038342,120]
[420285875,1775910884725,-399.820276,0.00038342,120]
[420285876,1775910884771,-151.0,0.00038342,120]
[420285877,1775910884808,-830.270309,0.00038342,120]
[420285878,1775910884845,-151.0,0.00038342,120]
[420285879,1775910884883,-830.270309,0.00038342,120]
[420285880,1775910884926,-154.346461,0.00038342,120]
[420285881,1775910884954,-830.270309,0.00038342,120]
[420285882,1775910884995,-151.0,0.00038342,30]
[420285883,1775910885039,-154.346461,0.00038342,120]
[420285884,1775910885077,-830.270309,0.00038342,120]
[420285885,1775910885120,-151.0,0.00038342,30]
[420285886,1775910885157,-367.340258,0.00038342,120]
[420285887,1775910885203,-537.761984,0.00038342,120]
[420285888,1775910885249,-154.346461,0.00038342,120]
[420285889,1775910885296,-151.0,0.00038342,30]
[420285890,1775910885368,-367.340258,0.00038342,120]
[420285891,1775910885415,-537.761984,0.00038342,120]
[420285892,1775910885451,-154.346461,0.00038342,120]
[420285893,1775910885507,-292.602024,0.00038342,30]
[420285894,1775910885551,-367.340258,0.00038342,120]
[420285895,1775910885593,-537.761984,0.00038342,120]
[420285896,1775910885657,-151.0,0.00038342,120]
[420285897,1775910885702,-367.340258,0.00038342,120]
[420285898,1775910885732,-151.0,0.00038342,120]
[420285899,1775910885777,-537.761984,0.00038342,120]
[420285900,1775910885810,-261.460136,0.00038342,120]
[420285901,1775910885840,-151.0,0.00038342,120]
[420285902,1775910885869,-261.460136,0.00038342,120]
[420285903,1775910885897,-401.170504,0.00038342,120]
[420285904,1775910885927,-205.36151,0.00038342,120]
[420285905,1775910885960,-261.460136,0.00038342,120]
[420285906,1775910885995,-401.170504,0.00038342,120]
[420285907,1775910886028,-205.36151,0.00038342,120]
[420285908,1775910886065,-261.460136,0.00038342,120]
[420285909,1775910886101,-401.170504,0.00038342,120]
[420285910,1775910886134,-205.36151,0.00038342,120]
[420285911,1775910886171,-401.170504,0.00038342,120]
[420285912,1775910886208,-205.36151,0.00038342,120]
[420285913,1775910886258,-156.008772,0.00038342,120]
[420285914,1775910886309,-156.008772,0.00038342,120]
[420285915,1775910886347,-151.0,0.00038342,120]
[420285916,1775910886385,-156.008772,0.00038342,120]
[420285917,1775910886421,-156.008772,0.00038342,120]
[420285918,1775910886449,-151.0,0.00038342,120]
[420285919,1775910886501,-151.0,0.00038342,120]
[420285920,1775910886533,-3000.0,0.00038356,120]
[420285921,1775910886570,-3000.0,0.00038356,120]
[420285922,1775910886614,-3000.0,0.00038356,120]
[420285923,1775910886655,-3000.0,0.00038356,120]
[420285924,1775910886716,-3900.0,0.00038356,120]
[420285925,1775910886765,-2000.0,0.00038356,120]
[420285926,1775910886803,-1000.0,0.00038356,120]
[420285927,1775910886842,-550.0,0.00038356,120]
[420285928,1775910886882,-550.0,0.00038356,60]
[420285929,1775910886919,-550.0,0.00038356,120]
[420285930,1775910886959,-550.0,0.00038356,90]
[420285931,1775910886995,-500.0,0.00038356,120]
[420285932,1775910887051,-151.0,0.00038356,120]
[420285933,1775910887100,-193.824135,0.00038356,120]
[420285934,1775910887162,-2000.0,0.00038356,60]
[420285935,1775910887213,-2000.0,0.00038356,60]
[420285936,1775910887254,-2000.0,0.00038356,60]
[420285937,1775910887296,-2000.0,0.00038356,60]
[420285938,1775910887769,-2000.0,0.00038356,60]
[420285939,1775910887816,-2000.0,0.00038356,60]
[420285940,1775910887858,-2000.0,0.00038356,60]
[420285941,1775910887892,-2000.0,0.00038356,60]
[420285942,1775910887930,-2000.0,0.00038356,60]
[420285943,1775910887980,-2000.0,0.00038356,60]
[420285944,1775910888016,-2000.0,0.00038356,60]
[420285945,1775910888055,-2000.0,0.00038356,60]
[420285946,1775910888101,-2000.0,0.00038356,60]
[420285947,1775910888143,-2000.0,0.00038356,60]
[420285948,1775910888186,-2000.0,0.00038356,60]
[420285949,1775910888221,-2000.0,0.00038356,60]
[420285950,1775910888253,-2000.0,0.00038356,60]
[420285951,1775910888287,-2000.0,0.00038356,60]